Cogmind - Beta 13 @@@ ROGUE MODE // 2024.04.18 @ 08:20:03 Player: Korywon Result: Destroyed by G-47 Trooper with Particle Gun Performance ------------- Evolutions (3) 1500 Regions Visited (5) 1000 Robots Destroyed (235) 1175 Value Destroyed (6808) 6808 Prototype IDs (10) 200 Alien Tech Used (0) 0 Bonus (1889) 1889 TOTAL SCORE: 12572 Bonus ------- High Alert Combat Kills 1756 Follower Combat Kills 412 Friendly Fire -279 Cogmind --------- Core Integrity 0/700 Matter 217/300 Energy 35/240 System Corruption 15% Temperature Cool (36) Movement Hovering (240) Ox3 Location -7/Factory Parts ------- > --- POWER (1) -------- Nuclear Core > --- PROPULSION (4) --- Gravmag System > --- UTILITY (4) ------ Improved Heat Sink Medium Storage Unit Utility Shielding Utility Shielding > --- WEAPON (4) ------- Particle Gun Cooled Particle Cannon > --- INVENTORY (10) --- Light Nuclear Core Light Nuclear Core Peak State ------------ > --- POWER ------------ Micro Nuclear Core > --- PROPULSION ------- Gravmag System Gravmag System Gravmag System Gravmag System > --- UTILITY ---------- Coolant Injector Medium Storage Unit Energy Filter Transmission Jammer > --- WEAPON ----------- Particle Gun High-powered Field Laser High-powered Field Laser Cooled Particle Cannon > --- INVENTORY -------- Nuclear Core Light Nuclear Core Light Nuclear Core Improved Hover Unit Improved Hover Unit Gravmag System Utility Shielding Utility Shielding Cooled Particle Cannon Cooled Particle Cannon [Rating: 52] Favorites ----------- Power Light Nuclear Core Engine Light Ion Engine Power Core Light Nuclear Core Propulsion Light Treads Treads Light Treads Leg Aluminum Leg Hover Unit Gravmag System Flight Unit VTOL Module Utility Medium Storage Unit Device Improved Heat Sink Storage Medium Storage Unit Hackware Hacking Suite Protection Medium Armor Plating Weapon Heavy Assault Cannon Energy Gun Heavy Particle Gun Energy Cannon Advanced Beam Cannon Ballistic Gun Autogun Ballistic Cannon Heavy Assault Cannon Launcher Missile Launcher Build | -11 -10 -9 -8 -8 -7 ------- Run | Yrd Mat Mat Mat Sto Fac Slots Evolved 6 | . . 2 2 . 2 Power . | . . . . . . Propulsion 2 | . . . 1 . 1 Utility 2 | . . . 1 . 1 Weapon 2 | . . 2 . . . Parts Attached 139 | 5 5 20 29 22 58 Power 11 | . 1 1 3 1 5 Engine 2 | . 1 1 . . . Core 9 | . . . 3 1 5 Reactor . | . . . . . . Propulsion 45 | 2 . 3 11 9 20 Treads 27 | 2 . 3 11 8 3 Leg 1 | . . . . 1 . Wheel . | . . . . . . Hover 13 | . . . . . 13 Flight 4 | . . . . . 4 Utility 33 | 1 1 3 5 4 19 Device 14 | . . 1 2 3 8 Storage 4 | 1 1 . . . 2 Processor . | . . . . . . Hackware 1 | . . . . 1 . Protection 14 | . . 2 3 . 9 Artifact . | . . . . . . Weapon 50 | 2 3 13 10 8 14 Energy Gun 10 | . . 1 . 5 4 Energy Cannon 10 | . . . 1 2 7 Ballistic Gun 14 | 2 3 7 2 . . Ballistic Cannon 9 | . . 1 5 1 2 Launcher 7 | . . 4 2 . 1 Special Weapon . | . . . . . . Impact Weapon . | . . . . . . Slashing Weapon . | . . . . . . Piercing Weapon . | . . . . . . Special Melee Weapon . | . . . . . . Unidentified Prototypes 8 | . . 2 . 4 2 Parts Lost 62 | . . 6 12 8 36 Power 7 | . . 1 2 1 3 Propulsion 24 | . . 1 5 4 14 Utility 16 | . . 2 2 2 10 Weapon 15 | . . 2 3 1 9 Highest Loss Streak 11 | . . 2 5 2 11 To Critical Strikes . | . . . . . . Average Slot Usage (%) 88 | . 87 94 85 85 90 Engine 3 | . 9 10 6 . . Core 4 | . . . 2 9 6 Treads 19 | . 28 21 26 22 10 Hover 5 | . . . . . 13 Flight 1 | . . . . . 3 Device 9 | . . . 9 11 13 Storage 9 | . 21 16 9 9 7 Protection 5 | . . 2 8 . 7 Energy Gun 5 | . . 2 1 13 8 Energy Cannon 4 | . . . 2 2 9 Ballistic Gun 6 | . 27 28 7 . . Ballistic Cannon 7 | . . 8 11 8 4 Launcher 1 | . . 2 . 1 1 Naked Turns . | . . . . . . Heaviest Build 50 | 8 24 34 50 40 46 Greatest Support 80 | 3 40 40 60 60 80 Greatest Overweight (x) 11 | 2 . 1 1 1 11 Average Overweight (x) . | 1 . . . . . Largest Inventory Capacity 10 | 8 10 10 10 10 10 Average Capacity 9 | 7 8 10 10 10 9 Most Carried 10 | 7 10 10 10 10 10 Average Carried 9 | 3 8 9 9 9 9 Final Capacity 10 | 8 10 10 10 10 10 Final Carried 10 | 7 10 9 5 10 2 Class Distribution -------------------- 34% | Tank 30% | Scavenger-Gunner 10% | Mutant 9% | Scavenger-Tank 9% | Gunner 3% | Scavenger-Mutant Dominant Class ---------------- Mutant | -10/Materials Gunner | -9/Materials Tank | -8/Materials Scavenger-Gunner | -8/Storage Scavenger-Gunner | -7/Factory Resources | -11 -10 -9 -8 -8 -7 ----------- Run | Yrd Mat Mat Mat Sto Fac Matter Collected 5601 | 219 397 912 2114 541 1418 Remotely . | . . . . . . Salvage Created 7783 | . 567 1264 2336 1086 2530 Parts 483 | . 30 93 156 52 152 Haulers Intercepted 14 | . 1 2 4 5 2 Recyclers Shooed 6 | . 1 3 . . 2 Parts Field Recycled . | . . . . . . Retrieved Matter . | . . . . . . Parts Self-Destructed . | . . . . . . Prevented . | . . . . . . Kills | -11 -10 -9 -8 -8 -7 ------- Run | Yrd Mat Mat Mat Sto Fac Combat Hostiles Destroyed 153 | . 7 30 55 16 45 Guns 47 | . 7 15 11 5 9 Cannons 84 | . . 5 38 11 30 AOE 21 | . . 10 6 . 5 Classes Destroyed 16 | . 5 4 6 . 1 Worker 18 | . 1 5 5 1 6 Builder 22 | . . 1 7 4 10 Tunneler 3 | . 2 1 . . . Hauler 14 | . 1 2 4 5 2 Recycler 13 | . 2 2 3 1 5 Operator 3 | . . . 1 . 2 Watcher 12 | . . 2 4 . 6 Swarmer 31 | . . 12 7 4 8 Grunt 74 | . 7 10 29 9 19 Brawler 6 | . . . 2 . 4 Duelist 4 | . . . 4 . . Protector 4 | . . . 4 . . Sentry 20 | . . 8 6 4 2 Hunter 4 | . . . 2 1 1 Programmer 11 | . . . . . 11 Heavy 1 | . . . 1 . . Best Kill Streak 11 | . 3 10 11 6 8 Combat Bots Only 8 | . 2 8 7 4 6 Max Kills in Single Turn 4 | . 1 4 4 2 3 Gunslinging 1 | . . 1 . . . Exploded 4 | . . 4 3 . 2 Melee . | . . . . . . Uniques/NPCs Destroyed . | . . . . . . Combat | -11 -10 -9 -8 -8 -7 -------- Run | Yrd Mat Mat Mat Sto Fac Hostile Shots Fired 867 | . 45 114 275 82 351 Missed 235 | . 11 26 70 24 104 Damage Taken 9795 | . 434 1211 3008 841 4301 Core 1437 | . 110 142 352 123 710 Absorbed by Shields . | . . . . . . Redirected to Shielding 100 | . . . . . 100 Ignored by Resistances 105 | . . . 105 . . Regen/Repaired (Parts) 462 | . . . 139 104 219 Core Remaining (%) 58 | 100 56 64 . 13 . Volleys Fired 467 | . 48 62 146 53 158 Largest 4 | . 2 4 4 3 4 Hottest 256 | . 46 130 151 183 256 Shots Fired 1188 | . 96 207 314 141 430 Gun 565 | . 96 152 89 88 140 Cannon 603 | . . 47 221 53 282 Launcher 20 | . . 8 4 . 8 Special . | . . . . . . Kinetic 710 | . 96 198 276 47 93 Thermal 448 | . . . 25 94 329 Explosive 20 | . . 8 4 . 8 Electromagnetic 10 | . . 1 9 . . Robot Hit Streak 15 | . 7 9 15 15 15 Robot Miss Streak 13 | . 5 5 4 6 13 Penetration Max 1 | . . . 1 . 1 Secondary Targets 3 | . 1 2 . . . Max Gunslinging Chain 1 | . 1 1 . . . Shots Hit Robots 608 | . 51 100 176 63 218 Core Hits 318 | . 22 59 98 33 106 Critical Kills 2 | . 1 . . . 1 Critical Parts Destroyed 2 | . . 1 1 . . Critical Strikes 47 | . 1 2 17 6 21 Burn 13 | . . . . 3 10 Meltdown 1 | . . . . . 1 Destroy 3 | . 1 1 1 . . Blast 30 | . . 1 16 3 10 Melee Attacks . | . . . . . . Impact . | . . . . . . Slashing . | . . . . . . Piercing . | . . . . . . Sneak Attacks . | . . . . . . Combat Hostiles . | . . . . . . Follow-up Attacks . | . . . . . . Damage Inflicted 20617 | . 737 2479 7754 1764 7883 Guns 5447 | . 737 1115 1014 853 1728 Cannons 12521 | . . 473 6249 911 4888 Explosions 2627 | . . 890 490 . 1247 Melee . | . . . . . . Ramming 22 | . . 1 1 . 20 Kinetic 11999 | . 737 1570 6792 911 1989 Thermal 6783 | . . 265 377 853 5288 Explosive 1514 | . . 625 410 . 479 Electromagnetic 299 | . . 18 174 . 107 Impact . | . . . . . . Slashing . | . . . . . . Piercing . | . . . . . . Highest Corruption 15 | . . 1 . . 15 Average Corruption 4 | . . 1 . . 5 Corruption Purged . | . . . . . . Corruption Blocked . | . . . . . . Effects 102 | . . 9 . . 93 Message Errors 26 | . . 4 . . 22 Matter Fused 20 | . . . . . 20 Heat Flow Errors 13 | . . 3 . . 10 Energy Discharges 14 | . . . . . 14 Parts Rejected 2 | . . . . . 2 Data Loss (minor) 12 | . . . . . 12 Data Loss (major) 1 | . . . . . 1 Misfires 9 | . . . . . 9 Alerts 2 | . . 1 . . 1 Misdirections 1 | . . . . . 1 Weapon Failures 2 | . . 1 . . 1 Overload Shots . | . . . . . . Overflow Damage 1044 | . . 84 450 60 450 Projectiles 817 | . . . 448 60 309 Explosions 227 | . . 84 2 . 141 Melee . | . . . . . . Knockbacks 47 | . . 3 28 2 14 Impact . | . . . . . . Kinetic 47 | . . 3 28 2 14 Secondary . | . . . . . . Self-Inflicted Damage 448 | . . 212 35 . 201 Shots 11 | . . 4 2 . 5 Rammed 5 | . . 1 1 . 3 Targets Rammed 5 | . . 1 1 . 3 Kicked . | . . . . . . Crushed . | . . . . . . Highest Temperature 842 | . 28 409 132 422 842 Average Temperature 106 | . 9 113 33 104 130 Received Heat Transfer 3516 | . 243 252 1422 261 1338 Effects 44 | . . 2 . 3 39 Shutdowns 7 | . . . . 2 5 Energy Bleed 6 | . . 1 . 1 4 Interference 9 | . . 1 . . 8 Matter Decay 4 | . . . . . 4 Short Circuit 2 | . . . . . 2 Damage (minor) 3 | . . . . . 3 Damage (major) 10 | . . . . . 10 Damage (core) 3 | . . . . . 3 Siege Activations . | . . . . . . Robots Corrupted . | . . . . . . Combat Hostiles . | . . . . . . Parts Fried . | . . . . . . Impact Corruptions . | . . . . . . Robots Melted 1 | . . . . . 1 Combat Hostiles 1 | . . . . . 1 Parts Melted 23 | . . . . 4 19 Heat Transferred 10365 | . . 150 581 1961 7673 Parts Sabotaged . | . . . . . . Parts Stolen . | . . . . . . Parts Stripped . | . . . . . . Power Chain Reactions 1 | . . . 1 . . Alert | -11 -10 -9 -8 -8 -7 ------- Run | Yrd Mat Mat Mat Sto Fac Peak Influence 1317 | . 161 667 1317 885 1195 Initial 551 | . . 67 273 551 162 Average 524 | . 44 384 606 562 560 Maximum Alert Level 4 | . . 2 4 3 4 Low Security (%) 18 | 100 100 11 . . 29 Level 1 25 | . . 41 41 24 11 Level 2 27 | . . 46 25 46 20 Level 3 22 | . . . 21 29 30 Level 4 6 | . . . 11 . 8 Level 5 . | . . . . . . High Security . | . . . . . . Max Security . | . . . . . . Sterilizations 1 | . . . 1 . . Squads Dispatched 38 | . 1 3 11 5 18 Investigation 8 | . . 1 3 2 2 Extermination 10 | . . . . . 10 Reinforcement 12 | . 1 2 4 2 3 Assault 8 | . . . 4 1 3 Garrison . | . . . . . . Intercept . | . . . . . . Searches Triggered . | . . . . . . Construction Impeded 2 | . . . 1 . 1 Haulers Reinforced 1 | . . . . . 1 Active Scanning Responses . | . . . . . . Cargo Convoy Interrupts . | . . . . . . Stealth | -11 -10 -9 -8 -8 -7 --------- Run | Yrd Mat Mat Mat Sto Fac Distress Signals 14 | . 3 4 2 4 1 Communications Jammed 3 | . . . . . 3 Distress Signals 3 | . . . . . 3 Times Spotted 251 | . 14 44 77 30 86 Peak Tracking Total 8 | . 3 6 7 4 8 Tactical Retreats 18 | . 1 . 5 1 11 Traps | -11 -10 -9 -8 -8 -7 ------- Run | Yrd Mat Mat Mat Sto Fac Traps Triggered 14 | . . 2 1 7 4 Indirectly . | . . . . . . Trap Hack Attempts . | . . . . . . Triggered . | . . . . . . Disarmed . | . . . . . . Reprogrammed . | . . . . . . Reused . | . . . . . . Traps Extracted . | . . . . . . Installed . | . . . . . . Triggered . | . . . . . . Objects Rigged 1 | . . . 1 . . Machines | -11 -10 -9 -8 -8 -7 ---------- Run | Yrd Mat Mat Mat Sto Fac Machines Disabled 29 | . . 4 8 4 13 Max in Single Turn 2 | . . 2 1 1 2 Garrison Access 3 | . . . 1 1 1 Machines Repaired . | . . . . . . Machines Dismantled . | . . . . . . Machines Sabotaged . | . . . . . . Overloaded Fab Kills . | . . . . . . Hacking | -11 -10 -9 -8 -8 -7 --------- Run | Yrd Mat Mat Mat Sto Fac Machines Accessed 43 | . 1 5 9 12 16 Terminals 34 | . 1 4 7 9 13 Fabricators 1 | . . . . . 1 Repair Stations 4 | . . . 1 2 1 Recycling Units . | . . . . . . Scanalyzers 1 | . . 1 . . . Garrison Access 3 | . . . 1 1 1 Total Hacks 99 | . 4 9 22 22 42 Successful 43 | . . 6 10 13 14 Failed 55 | . 4 3 11 9 28 Catastrophic 10 | . . . 2 4 4 Database Lockouts 1 | . . . 1 . . Manual 53 | . . 4 11 15 23 Terminals 73 | . 4 7 15 17 30 Fabricators 4 | . . . . . 4 Repair Stations 14 | . . . 5 4 5 Recycling Units . | . . . . . . Scanalyzers 2 | . . 2 . . . Garrison Access 6 | . . . 2 1 3 Terminal Hacks 18 | . . 3 5 7 3 Record 1 | . . . 1 . . Part Schematic 2 | . . . 1 1 . Prototype ID Bank 1 | . . . 1 . . Open Door 3 | . . . . 3 . Open DSF 1 | . . . . . 1 Terminal Index 1 | . . . . . 1 Unreport Threat 4 | . . . 1 3 . Locate Traps 1 | . . 1 . . . Zone Layout 4 | . . 2 1 . 1 Fabricator Hacks 2 | . . . . . 2 Load Schematic 1 | . . . . . 1 Build 1 | . . . . . 1 Repair Station Hacks 10 | . . . 3 3 4 Scan Component 6 | . . . 2 2 2 Repair 4 | . . . 1 1 2 Recycling Unit Hacks . | . . . . . . Scanalyzer 2 | . . 2 . . . Insert Component 1 | . . 1 . . . Analyze 1 | . . 1 . . . Garrison Access Hacks 2 | . . . . 1 1 Seal Access 2 | . . . . 1 1 Unauthorized Hacks 9 | . . 1 2 2 4 Terminals 9 | . . 1 2 2 4 Assimilate 1 | . . . . . 1 Botnet 7 | . . 1 1 2 3 Detonate 1 | . . . 1 . . Fabricators . | . . . . . . Repair Stations . | . . . . . . Recycling Units . | . . . . . . Scanalyzers . | . . . . . . Garrison Access . | . . . . . . Data Cores Recovered 1 | . . . . . 1 Used . | . . . . . . Hacking Detections 34 | . 1 3 8 8 14 Full Trace Events 6 | . . . 3 1 2 Feedback Events 1 | . . . . 1 . Hackware Fried 1 | . . . . 1 . Feedback Blocked . | . . . . . . Robot Schematics Acquired . | . . . . . . Robots Built . | . . . . . . Authchips . | . . . . . . Time . | . . . . . . Total Robot Build Rating . | . . . . . . Part Schematics Acquired 3 | . . 1 1 1 . Parts Built 1 | . . . . . 1 Authchips . | . . . . . . Time 73 | . . . . . 73 Total Part Build Rating 3 | . . . . . 3 Parts Repaired 4 | . . . 1 1 2 Time 90 | . . . 26 38 26 Parts Recycled . | . . . . . . Recycled Matter . | . . . . . . Retrieved Matter . | . . . . . . Retrieved Components . | . . . . . . Parts Scanalyzed 1 | . . 1 . . . Part Schematics Acquired 1 | . . 1 . . . Parts Damaged . | . . . . . . Bothacking | -11 -10 -9 -8 -8 -7 ------------ Run | Yrd Mat Mat Mat Sto Fac Used RIF Installer . | . . . . . . Robots Hacked . | . . . . . . Non-combat . | . . . . . . Combat . | . . . . . . Robot Hacks Applied . | . . . . . . Relay Couplers Released 2 | . . . 2 . . Machine Destruction 2 | . . . 2 . . Fabnet Peak Effective % . | . . . . . . Robots Rewired . | . . . . . . Allies Hacked . | . . . . . . Hacks Repelled . | . . . . . . Allies | -11 -10 -9 -8 -8 -7 -------- Run | Yrd Mat Mat Mat Sto Fac Total Allies 10 | . . . . 9 1 Largest Group 9 | . . . . 9 1 Highest-Rated Group 157 | . . . . 157 26 Highest-Rated Ally 29 | . . . . 29 26 Total Orders . | . . . . . . Ally Attacks 91 | . . . . 91 . Total Damage 1253 | . . . . 1253 . Kills 15 | . . . . 15 . Allies Corrupted . | . . . . . . Allies Melted . | . . . . . . Intel | -11 -10 -9 -8 -8 -7 ------- Run | Yrd Mat Mat Mat Sto Fac Robot Analysis Total . | . . . . . . Derelict Logs Recovered . | . . . . . . Drone Launches . | . . . . . . Drone Recoveries . | . . . . . . Exploration | -11 -10 -9 -8 -8 -7 ------------- Run | Yrd Mat Mat Mat Sto Fac Turns Passed 13801 | 80 766 1480 4273 2137 5065 Spaces Moved 6873 | 61 359 777 1827 981 2868 Core 71 | 61 . . . . 10 Treads 4679 | . 359 777 1827 981 735 Legs . | . . . . . . Wheels . | . . . . . . Hover 1828 | . . . . . 1828 Flight 295 | . . . . . 295 Fastest Speed 48 | 50 160 160 160 160 48 Average Speed 152 | 109 160 160 178 171 127 Slowest Speed 915 | 150 160 240 240 240 915 Overloaded Moves . | . . . . . . Propulsion Burnouts . | . . . . . . Robots Hopped . | . . . . . . Cave-ins Triggered . | . . . . . . Exploration Rate (%) 51 | 4 38 51 81 87 49 Regions Visited 5 Branch Regions 1 Pre-discovered Areas . | . . . . . . Known Exits Taken . | . . . . . . Unknown Exits Taken 5 | 1 1 1 1 1 . Scrap Searched . | . . . . . . Spaces Dug . | . . . . . . Terrain Destroyed 442 | . . 108 133 31 170 Melee . | . . . . . . Projectile 187 | . . 3 98 31 55 AOE 255 | . . 105 35 . 115 Terrain Rammed . | . . . . . . Walls Destroyed . | . . . . . . Machines Disabled . | . . . . . . Actions | -11 -10 -9 -8 -8 -7 --------- Run | Yrd Mat Mat Mat Sto Fac Total 9112 | 72 463 895 2479 1297 3906 Wait 1451 | . 32 7 437 215 760 Move 6868 | 60 358 776 1826 980 2868 Hop . | . . . . . . Pick Up 107 | 7 11 16 18 17 38 Fast Attach 52 | 5 3 3 11 11 19 Attach 66 | . 1 13 14 7 31 Detach 5 | . . 1 1 1 2 Swap 21 | . 1 4 4 4 8 Drop 69 | . 9 12 21 8 19 Fire 467 | . 48 62 146 53 158 Melee . | . . . . . . Ram 3 | . . . . . 3 Kick . | . . . . . . Crush 2 | . . 1 1 . . Escape Stasis . | . . . . . . Rewire 1 | . . . . 1 . Trap . | . . . . . . Miscellaneous . | . . . . . . Route ------- -11/Scrapyard -10/Materials -9/Materials (discovered 3 exits: *Mat x2 / [*Min]) -8/Materials (discovered 3 exits: *Fac x2 / *Sto) -8/Storage -7/Factory (discovered 1 exit: [*Fac]) History --------- Turn | Location | Event 32 | -11/Scrapyard | Discovered new exit (range 15) 81 | -11/Scrapyard | Entered Materials 303 | -10/Materials | Build established: Mutant 478 | -10/Materials | Discovered new exit (range 15) 581 | -10/Materials | Derelicts attacked the area 847 | -10/Materials | Entered another Materials area 847 | -9/Materials | Evolved 2 slots: Weapon x2 1144 | -9/Materials | Build established: Gunner 1586 | -9/Materials | Discovered new exit (range 16) 1674 | -9/Materials | Destroyed 8 combat bots 2057 | -9/Materials | Discovered new exit (range 13) 2302 | -9/Materials | Discovered new exit (range 15) 2327 | -9/Materials | Entered another Materials area 2327 | -8/Materials | Evolved 2 slots: Propulsion x1, Utility x1 2461 | -8/Materials | Discovered new exit (range 13) 2613 | -8/Materials | Discovered new exit (range 11) 2621 | -8/Materials | Build established: Tank 3164 | -8/Materials | Repaired Lgt. Treads 3209 | -8/Materials | Discovered new exit (range 7) 4397 | -8/Materials | Destroyed 7 combat bots 5127 | -8/Materials | First assault squad dispatched 5475 | -8/Materials | Central database locked down 5930 | -8/Materials | Build established: Mutant 6199 | -8/Materials | Found Prototype Device 6328 | -8/Materials | Build established: Scavenger-Tank 6395 | -8/Materials | Core integrity fell below 50% 6465 | -8/Materials | Lost 5 parts (1p1n1u2w) 6472 | -8/Materials | Sterilization system engaged 6472 | -8/Materials | Non-combat units ordered to evacuate 6572 | -8/Materials | Combat units ordered to evacuate 6600 | -8/Materials | Entered Storage 6726 | -8/Storage | Build established: Scavenger-Gunner 6741 | -8/Storage | Assisted by bots powering up and referring to "LRC-V3" 6842 | -8/Storage | Lost 4 allies 7000 | -8/Storage | First assault squad dispatched 7223 | -8/Storage | Repaired Hvy. Assault Cannon 7823 | -8/Storage | Hacking Suite fried by hacking feedback 7919 | -8/Storage | Core integrity fell below 20% 8634 | -8/Storage | Discovered new exit (range 15) 8737 | -8/Storage | Entered Factory 8737 | -7/Factory | Evolved 2 slots: Propulsion x1, Utility x1 8846 | -7/Factory | Fabricated Hvy. Assault Cannon (x1) 9939 | -7/Factory | Lost 3 parts (1p1n1u) 10593 | -7/Factory | Lost 11 parts (1p4n2u4w) 11136 | -7/Factory | Build established: Scavenger-Tank 11509 | -7/Factory | Discovered new exit (range 4) 11656 | -7/Factory | Build established: Tank 11777 | -7/Factory | Repaired Core Shielding 11791 | -7/Factory | Repaired Med. Storage Unit 12337 | -7/Factory | First assault squad dispatched 12489 | -7/Factory | Core integrity fell below 50% 12576 | -7/Factory | Lost 5 parts (2n2u1w) 12802 | -7/Factory | System corruption reached 10% 13473 | -7/Factory | Build established: Scavenger-Gunner 13691 | -7/Factory | Lost 5 parts (2n2u1w) 13747 | -7/Factory | Core integrity fell below 20% 13802 | -7/Factory | Destroyed by G-47 Trooper with Particle Gun Last Messages --------------- 13746_ Acquired Gravmag System. 13748_ System corrupted: Component data lost. 13752_ Mic. Nuclear Core destroyed. 13753_ Acquired Gravmag System. 13756_ U-05 Engineer suffers critical hit (Burn). 13759_ Acquired Imp. Hover Unit. 13762_ U-05 Engineer destroyed. 13768_ System corrupted: Heat flow error (+182). 13768_ B-48 Gladiator destroyed. 13783_ U-05 Engineer destroyed. 13785_ Gravmag System destroyed. 13792_ System corrupted: Component data lost. 13793_ U-05 Engineer destroyed. 13795_ Imp. Hover Unit destroyed. 13795_ Critical hit (Burn: +37). 13799_ R-06 Scavenger collects Structural Scanner. 13800_ U-05 Engineer builds a Door. 13801_ Cld. Particle Cannon destroyed. Map ----- +----------------------------------------------------+ | ????? # #?# """ #??????## ### #??? | | ????? """ """ # #?# """ ]#??????# ## #??? | | ????# """ "Y" # #?# """ #??????# ## #### | | ????# """ # #?# #??????# | | ????# # #?# #??????# ! ! ####### | | ????# [ + #?# #??????# #?????? | | ????# # #?# #??????### ###?????? | | ????############# ######+####????????# #???##### | | ????????# T # #?# #######+### ##### | | ????????# # ### ## | | ????????# """ + ## | | ????????# """ # ### ## | | ????????# """ # #?# i ######## % ## | | ????????# !#######?## ##??????# = ## | | ????????########????????#!g #???????# ###### | | ????????????????????????#!| #???????# ??? | | ????????????????????????#%/*#??"" ?# ? | | ????????????????????????#g!g#??"" ??+ """""""" | | ????????????????????????#!==#?"""?? # """""""" | | ????????????????????????#|%!# ??? # """""""" | | ????????????????????????# !=# "??? ?# """????? | | ????????????????????????# u+ ???? ?## ""?????? | | ????????????????????????#=% #???? ???# ""?????? | | ????????????????????????# #????????# ??????? | | ????????????????????????# r^#????????# ??????? | | ????????????????????????#@ #????????# ??????? | | ????????????????????????# #????????# ??????? | | ????????????????????????# #????????? ??????? | | ????????????????????????# ???????????????????? | | ????????????????????????# ###??????????????????? | | ????????????????????????# #????????????????????? | | ????????????????????????#k #????????????????????? | | ???????????????????????? #????????????????????? | | ????????????????????????##+##????????????????????? | | ?????????????????????????? ?????????????????????? | | ?????????????????????????? ?????????????????????? | | ?????????????????????????? ?????????????????????? | | ?????????????????????????? ?????????????????????? | | ?????????????????????????? ?????????????????????? | | ?????????????????????????? ?????????????????????? | | ?????????????????????????? ?????????????????????? | | ?????????????????????????????????????????????????? | | ?????????????????????????????????????????????????? | | ?????????????????????????????????????????????????? | | ?????????????????????????????????????????????????? | | ?????????????????????????????????????????????????? | | ?????????????????????????????????????????????????? | | ?????????????????????????????????????????????????? | | ?????????????????????????????????????????????????? | | ?????????????????????????????????????????????????? | +----------------------------------------------------+ Best States ------------- Heat Dissipation 63 Coolant Potential 65 Energy Generation 15 Energy Capacity 310 Matter Stores 300 Matter Capacity 300 Sight Range 16 Terrain Scan Density 10 Jamming Range 12 Armor Coverage 375 Resistance: KI 20 Core Shielding 20 Utility Shielding 33 Evasion (%) 55 Recoil Reduction 4 Energy Filtering 30 Particle Charging 15 Offensive Hacking 10 Item Schematics ----------------- Lgt. Treads | -9/Materials | Scanalyzed Hvy. Assault Cannon | -8/Materials | Hacked Adv. Treads | -8/Storage | Hacked Robot Schematics ------------------ None Fabricated ------------ Hvy. Assault Cannon | x1 | -7/Factory Alien Tech Used ----------------- None Achievements -------------- None Challenges ------------ None Game ------ Seed SigixAlphaEngine Manual? 0 Play Time 01:36:28 Cumulative 67.9 hours Start 2024.04.17 @ 23:44:20 End 2024.04.18 @ 08:20:03 Sessions 1 Manual Loads 0 Difficulty Rogue Special Mode None Game No. 59 Rogue 59 Adventurer 0 Explorer 0 Win Type - Total 0 Types 0/0/0/0/0/0/0/0/0 Lore% 16 Gallery% 28 Achievement% 24 Wizard Run 0 Options --------- Layout 2 ASCII 0 Keyboard 0 Movement Arrows Keybinds 0 Fullscreen 1 Font 16/Cog Map View 50x49 Zoom Use 0% Tactical HUD 1 Map Filters NONE Filters NONE Steam SD RUN: f71b3647-8b4e-49f6-8deb-08c79a9e1a91